[Event "44th Chess Olympiad Women 2022"]
[Site "Chennai"]
[Date "2022.07.31"]
[Round "3.77"]
[White "Barja de Quiroga Losada, Ana"]
[Black "De Souza, Ivana Claudia Eyram"]
[Result "0-1"]
[WhiteElo "1437"]
[BlackElo "1167"]
[Annotator "NA RC"]
[PlyCount "32"]
[EventDate "2022.??.??"]
[TimeControl "60"]

1. e4 {[%emt 0:00:14]} e5 {[%emt 0:00:00]} 2. Nc3 {[%emt 0:00:18]} Nf6 {
[%emt 0:01:01]} 3. Bc4 {[%emt 0:01:34]} Bc5 {[%emt 0:01:08]} 4. Nf3 {[%emt 0:
00:00]} Nc6 {[%emt 0:02:14]} 5. O-O {[%emt 0:01:00]} O-O {[%emt 0:00:15]} 6. d3
{[%emt 0:01:00]} d6 {[%emt 0:02:14]} 7. d4 {[%emt 0:00:37]} Nxd4 {[%emt 0:00:
00]} 8. Nxd4 {[%emt 0:01:38]} Bxd4 {[%emt 0:00:48]} 9. Qxd4 {[%emt 0:01:04]}
exd4 {[%emt 0:00:44]} 10. Na4 {[%emt 0:01:21]} Nxe4 {[%emt 0:01:36]} 11. c3 {
[%emt 0:01:12]} Bd7 {[%emt 0:01:30]} 12. b3 {[%emt 0:00:59]} Qf6 {[%emt 0:00:
00]} 13. Bd2 {[%emt 0:01:25]} Nxd2 {[%emt 0:00:25]} 14. Rad1 {[%emt 0:01:04]}
Qg5 {[%emt 0:01:05]} 15. Rxd2 {[%emt 0:01:01]} Bc6 {[%emt 0:00:54]} 16. cxd4 {
[%emt 0:01:25]} Qxg2# {[%emt 0:00:24]} 0-1

[Event "44th Chess Olympiad Women 2022"]
[Site "Chennai"]
[Date "2022.07.31"]
[Round "3.78"]
[White "Comas Colon, Rinelly M."]
[Black "Puuska, Heini"]
[Result "0-1"]
[WhiteElo "1585"]
[BlackElo "2010"]
[Annotator "NA RC"]
[PlyCount "116"]
[EventDate "2022.??.??"]
[TimeControl "60"]

1. c4 {[%emt 0:00:13]} d6 {[%emt 0:00:23]} 2. Nc3 {[%emt 0:00:42]} e5 {[%emt 0:
00:00]} 3. g3 {[%emt 0:01:15]} f5 {[%emt 0:00:38]} 4. e3 {[%emt 0:02:58]} Nf6 {
[%emt 0:01:44]} 5. Bg2 {[%emt 0:00:53]} c6 {[%emt 0:01:44]} 6. d4 {[%emt 0:00:
00]} Be7 {[%emt 0:03:38]} 7. Nge2 {[%emt 0:03:54]} O-O {[%emt 0:01:15]} 8. O-O
{[%emt 0:06:38]} Qe8 {[%emt 0:01:37]} 9. d5 {[%emt 0:07:52]} c5 {[%emt 0:14:39]
} 10. e4 {[%emt 0:18:49]} fxe4 {[%emt 0:12:03]} 11. Nxe4 {[%emt 0:01:10]} Nxe4
{[%emt 0:01:07]} 12. Bxe4 {[%emt 0:02:16]} Qh5 {[%emt 0:04:31]} 13. Nc3 {
[%emt 0:08:53]} Bg4 {[%emt 0:01:17]} 14. f3 {[%emt 0:04:10]} Bh3 {[%emt 0:00:
00]} 15. f4 {[%emt 0:02:58]} Qxd1 {[%emt 0:05:32]} 16. Rxd1 {[%emt 0:00:05]}
Nd7 {[%emt 0:02:10]} 17. Be3 {[%emt 0:06:49]} a6 {[%emt 0:02:54]} 18. Bg2 {
[%emt 0:03:40]} Bg4 {[%emt 0:02:35]} 19. Re1 {[%emt 0:00:44]} b5 {[%emt 0:00:
00]} 20. cxb5 {[%emt 0:02:19]} axb5 {[%emt 0:00:06]} 21. Nxb5 {[%emt 0:00:56]}
Rfb8 {[%emt 0:00:35]} 22. a4 {[%emt 0:07:13]} Bf5 {[%emt 0:10:02]} 23. fxe5 {
[%emt 0:02:26]} Nxe5 {[%emt 0:00:19]} 24. Nc7 {[%emt 0:03:29]} Ra5 {[%emt 0:00:
00]} 25. Bd2 {[%emt 0:00:54]} Ra7 {[%emt 0:00:57]} 26. Nb5 {[%emt 0:00:52]} Rd7
{[%emt 0:01:25]} 27. Bc3 {[%emt 0:00:31]} Nd3 {[%emt 0:02:24]} 28. Rf1 {
[%emt 0:01:28]} Bg6 {[%emt 0:00:51]} 29. Bh3 {[%emt 0:00:41]} Rdb7 {[%emt 0:00:
00]} 30. Be6+ {[%emt 0:01:15]} Kh8 {[%emt 0:00:17]} 31. Rad1 {[%emt 0:00:31]}
Ra8 {[%emt 0:06:56]} 32. Bf7 {[%emt 0:01:18]} Be4 {[%emt 0:01:50]} 33. b3 {
[%emt 0:00:41]} Bg5 {[%emt 0:01:02]} 34. Bd2 {[%emt 0:00:34]} Bf6 {[%emt 0:00:
00]} 35. Rfe1 {[%emt 0:01:13]} Nxe1 {[%emt 0:01:41]} 36. Rxe1 {[%emt 0:00:24]}
Bc2 {[%emt 0:02:18]} 37. Nxd6 {[%emt 0:00:39]} Rd7 {[%emt 0:00:25]} 38. Bf4 {
[%emt 0:00:41]} g5 {[%emt 0:00:31]} 39. Be8 {[%emt 0:00:22]} Re7 {[%emt 0:00:
00]} 40. Rxe7 {[%emt 0:00:34]} Bxe7 {[%emt 0:00:15]} 41. Be5+ {[%emt 0:03:44]}
Kg8 {[%emt 0:01:06]} 42. Bc6 {[%emt 0:01:36]} Rf8 {[%emt 0:02:14]} 43. Bd7 {
[%emt 0:06:27]} Bf6 {[%emt 0:05:16]} 44. Be6+ {[%emt 0:03:52]} Kg7 {[%emt 0:00:
00]} 45. Bxf6+ {[%emt 0:02:20]} Kxf6 {[%emt 0:00:25]} 46. Nb7 {[%emt 0:01:00]}
Ke5 {[%emt 0:03:16]} 47. Nxc5 {[%emt 0:00:47]} Kd6 {[%emt 0:01:17]} 48. Nd7 {
[%emt 0:06:55]} Rf3 {[%emt 0:02:26]} 49. a5 {[%emt 0:04:22]} Rxb3 {[%emt 0:00:
00]} 50. a6 {[%emt 0:01:00]} Ra3 {[%emt 0:01:44]} 51. Nb8 {[%emt 0:01:32]} Be4
{[%emt 0:04:19]} 52. Bg8 {[%emt 0:01:44]} h6 {[%emt 0:01:12]} 53. Nc6 {[%emt 0:
00:00]} Rxa6 {[%emt 0:00:45]} 54. Nd4 {[%emt 0:00:52]} Bxd5 {[%emt 0:04:19]}
55. Bh7 {[%emt 0:00:31]} Ke5 {[%emt 0:01:35]} 56. Ne2 {[%emt 0:00:33]} Bf3 {
[%emt 0:04:04]} 57. Kf2 {[%emt 0:00:26]} Bxe2 {[%emt 0:00:27]} 58. Kxe2 {
[%emt 0:00:08]} Ra2+ {[%emt 0:00:06]} 0-1

[Event "44th Chess Olympiad Women 2022"]
[Site "Chennai"]
[Date "2022.07.31"]
[Round "3.78"]
[White "Morales Santos, Natasha"]
[Black "Nazarova, Anastasia"]
[Result "0-1"]
[WhiteElo "1924"]
[BlackElo "2208"]
[Annotator "RC"]
[PlyCount "58"]
[EventDate "2022.??.??"]
[TimeControl "60"]

1. d4 {[%emt 0:01:19]} d5 {[%emt 0:00:03]} 2. c4 {[%emt 0:00:21]} e6 {[%emt 0:
00:00]} 3. Nc3 {[%emt 0:00:12]} c6 {[%emt 0:00:05]} 4. cxd5 {[%emt 0:02:04]}
exd5 {[%emt 0:04:04]} 5. Bf4 {[%emt 0:00:24]} Bd6 {[%emt 0:04:26]} 6. Bxd6 {
[%emt 0:03:00]} Qxd6 {[%emt 0:00:01]} 7. Qc2 {[%emt 0:02:06]} Ne7 {[%emt 0:00:
00]} 8. e3 {[%emt 0:07:50]} Bf5 {[%emt 0:09:43]} 9. Bd3 {[%emt 0:08:28]} Bxd3 {
[%emt 0:03:47]} 10. Qxd3 {[%emt 0:00:15]} O-O {[%emt 0:00:11]} 11. Nf3 {
[%emt 0:01:32]} Nd7 {[%emt 0:00:34]} 12. O-O {[%emt 0:01:29]} f5 {[%emt 0:00:
00]} 13. a3 {[%emt 0:07:43]} a5 {[%emt 0:03:09]} 14. Nd2 {[%emt 0:06:44]} f4 {
[%emt 0:10:45]} 15. Rae1 {[%emt 0:08:21]} fxe3 {[%emt 0:03:51]} 16. Rxe3 {
[%emt 0:00:54]} Ng6 {[%emt 0:03:49]} 17. Rfe1 {[%emt 0:16:09]} Nf4 {[%emt 0:00:
00]} 18. Qc2 {[%emt 0:04:32]} Nf6 {[%emt 0:07:00]} 19. h3 {[%emt 0:06:40]} N6h5
{[%emt 0:08:42]} 20. Nf3 {[%emt 0:08:26]} Qh6 {[%emt 0:01:26]} 21. Ne5 {
[%emt 0:02:08]} Qg5 {[%emt 0:06:24]} 22. Ng4 {[%emt 0:03:12]} Qh4 {[%emt 0:00:
00]} 23. Re7 {[%emt 0:04:43]} Nxg2 {[%emt 0:04:01]} 24. Nh6+ {[%emt 0:02:35]}
Kh8 {[%emt 0:00:04]} 25. Nf7+ {[%emt 0:00:18]} Rxf7 {[%emt 0:00:10]} 26. Rxf7 {
[%emt 0:00:11]} Nxe1 {[%emt 0:00:20]} 27. Qf5 {[%emt 0:00:42]} Nf6 {[%emt 0:00:
00]} 28. Re7 {[%emt 0:00:49]} Ne4 {[%emt 0:03:27]} 29. Qf7 {[%emt 0:00:22]}
Nf3+ {[%emt 0:00:17]} 0-1

[Event "44th Chess Olympiad Women 2022"]
[Site "Chennai"]
[Date "2022.07.31"]
[Round "3.78"]
[White "Norlamo, Sarabella"]
[Black "Alvarado Perez, Coralys M."]
[Result "1-0"]
[WhiteElo "1925"]
[BlackElo "1471"]
[Annotator "NA"]
[PlyCount "33"]
[EventDate "2022.??.??"]
[TimeControl "60"]

1. e4 {[%emt 0:00:05]} g6 {[%emt 0:00:46]} 2. Nf3 {[%emt 0:00:09]} Bg7 {
[%emt 0:00:10]} 3. d4 {[%emt 0:00:06]} c5 {[%emt 0:00:46]} 4. dxc5 {[%emt 0:00:
00]} Nf6 {[%emt 0:01:15]} 5. Nc3 {[%emt 0:01:41]} Qa5 {[%emt 0:01:33]} 6. e5 {
[%emt 0:35:45]} Ng4 {[%emt 0:06:33]} 7. Qd4 {[%emt 0:06:37]} h5 {[%emt 0:06:01]
} 8. b4 {[%emt 0:14:20]} Qd8 {[%emt 0:17:58]} 9. b5 {[%emt 0:09:08]} d6 {
[%emt 0:09:33]} 10. cxd6 {[%emt 0:00:59]} exd6 {[%emt 0:00:38]} 11. Bg5 {
[%emt 0:06:09]} Qd7 {[%emt 0:04:11]} 12. O-O-O {[%emt 0:08:00]} dxe5 {[%emt 0:
00:00]} 13. Qc5 {[%emt 0:03:32]} f6 {[%emt 0:15:05]} 14. Rxd7 {[%emt 0:00:10]}
Nxd7 {[%emt 0:00:06]} 15. Qd6 {[%emt 0:01:25]} fxg5 {[%emt 0:05:22]} 16. Qxg6+
{[%emt 0:00:06]} Kf8 {[%emt 0:00:40]} 17. Nxg5 {[%emt 0:00:30]} 1-0

[Event "44th Chess Olympiad Women 2022"]
[Site "Chennai"]
[Date "2022.07.31"]
[Round "3.78"]
[White "Paasikangas, Johanna"]
[Black "Vega Jimenez, Keyshla M."]
[Result "1-0"]
[WhiteElo "2155"]
[BlackElo "1653"]
[Annotator "RC"]
[PlyCount "117"]
[EventDate "2022.??.??"]
[TimeControl "60"]

1. e4 {[%emt 0:00:03]} e5 {[%emt 0:00:16]} 2. Nf3 {[%emt 0:00:15]} Nc6 {
[%emt 0:00:07]} 3. Bc4 {[%emt 0:00:07]} Bc5 {[%emt 0:00:44]} 4. d3 {[%emt 0:00:
00]} Nf6 {[%emt 0:00:59]} 5. c3 {[%emt 0:00:27]} d6 {[%emt 0:02:58]} 6. Bg5 {
[%emt 0:05:55]} h6 {[%emt 0:05:20]} 7. Bh4 {[%emt 0:00:08]} Qe7 {[%emt 0:02:18]
} 8. b4 {[%emt 0:03:56]} Bb6 {[%emt 0:02:15]} 9. a4 {[%emt 0:01:06]} a5 {
[%emt 0:05:45]} 10. b5 {[%emt 0:05:02]} Nd8 {[%emt 0:03:54]} 11. Nbd2 {[%emt 0:
00:00]} Be6 {[%emt 0:03:36]} 12. Qe2 {[%emt 0:03:09]} O-O {[%emt 0:07:49]} 13.
O-O {[%emt 0:05:58]} Re8 {[%emt 0:03:20]} 14. Rfe1 {[%emt 0:02:03]} Rc8 {
[%emt 0:05:03]} 15. Bxe6 {[%emt 0:07:09]} Nxe6 {[%emt 0:00:47]} 16. Nc4 {
[%emt 0:00:35]} Nf4 {[%emt 0:02:09]} 17. Qd2 {[%emt 0:00:53]} Qe6 {[%emt 0:00:
00]} 18. Nxb6 {[%emt 0:04:30]} cxb6 {[%emt 0:01:51]} 19. Bg3 {[%emt 0:03:12]}
N6h5 {[%emt 0:06:22]} 20. c4 {[%emt 0:03:47]} Qd7 {[%emt 0:05:30]} 21. Nh4 {
[%emt 0:05:27]} Ne6 {[%emt 0:04:18]} 22. Nf5 {[%emt 0:02:46]} Nc5 {[%emt 0:00:
00]} 23. Qe3 {[%emt 0:03:46]} Re6 {[%emt 0:07:05]} 24. Qf3 {[%emt 0:02:39]}
Nxg3 {[%emt 0:00:55]} 25. hxg3 {[%emt 0:00:10]} Rg6 {[%emt 0:01:23]} 26. Red1 {
[%emt 0:01:38]} Ne6 {[%emt 0:02:15]} 27. Qe3 {[%emt 0:01:26]} Qc7 {[%emt 0:00:
00]} 28. f3 {[%emt 0:01:47]} Kf8 {[%emt 0:02:25]} 29. Kf2 {[%emt 0:00:59]} Rd8
{[%emt 0:01:11]} 30. Rac1 {[%emt 0:09:14]} Nc5 {[%emt 0:06:27]} 31. Ra1 {
[%emt 0:00:18]} Ne6 {[%emt 0:00:23]} 32. Ra2 {[%emt 0:00:59]} Qc5 {[%emt 0:00:
00]} 33. Rc2 {[%emt 0:05:31]} Qxe3+ {[%emt 0:07:44]} 34. Nxe3 {[%emt 0:00:27]}
Nc5 {[%emt 0:01:00]} 35. Ra2 {[%emt 0:00:15]} Re6 {[%emt 0:01:06]} 36. Nd5 {
[%emt 0:00:17]} Nd7 {[%emt 0:00:24]} 37. f4 {[%emt 0:03:48]} f6 {[%emt 0:01:06]
} 38. Kf3 {[%emt 0:02:20]} Kf7 {[%emt 0:00:48]} 39. g4 {[%emt 0:04:03]} Ree8 {
[%emt 0:00:33]} 40. g3 {[%emt 0:00:26]} Rh8 {[%emt 0:00:42]} 41. Rh2 {[%emt 0:
00:00]} Rc8 {[%emt 0:31:16]} 42. Ke3 {[%emt 0:06:46]} Ke6 {[%emt 0:00:00]} 43.
Rdh1 {[%emt 0:00:00]} Kf7 {[%emt 0:00:00]} 44. g5 {[%emt 0:00:00]} Rcg8 {
[%emt 0:00:00]} 45. Rh5 {[%emt 0:00:00]} Ke8 {[%emt 0:00:00]} 46. R1h3 {
[%emt 0:00:00]} fxg5 {[%emt 0:00:00]} 47. fxg5 {[%emt 0:00:00]} Rf8 {[%emt 0:
00:00]} 48. gxh6 {[%emt 0:00:00]} gxh6 {[%emt 0:00:00]} 49. Rxh6 {[%emt 0:00:
00]} Rxh6 {[%emt 0:00:00]} 50. Rxh6 {[%emt 0:00:00]} Rf1 {[%emt 0:00:43]} 51.
Re6+ {[%emt 0:00:00]} Kf8 {[%emt 0:03:44]} 52. Rxd6 {[%emt 0:00:00]} Nc5 {
[%emt 0:00:46]} 53. Nxb6 {[%emt 0:00:00]} Ra1 {[%emt 0:01:22]} 54. Rd5 {
[%emt 0:00:00]} Nxa4 {[%emt 0:00:36]} 55. Nxa4 {[%emt 0:00:00]} Rxa4 {[%emt 0:
00:00]} 56. Rxe5 {[%emt 0:00:00]} Ra1 {[%emt 0:00:32]} 57. b6 {[%emt 0:00:00]}
a4 {[%emt 0:00:20]} 58. Ra5 {[%emt 0:00:32]} a3 {[%emt 0:00:34]} 59. Kd4 {
[%emt 0:00:46]} 1-0

[Event "44th Chess Olympiad Women 2022"]
[Site "Chennai"]
[Date "2022.08.01"]
[Round "4.1"]
[White "Gaal, Zsoka"]
[Black "Tania, Sachdev"]
[Result "0-1"]
[WhiteElo "2313"]
[BlackElo "2399"]
[Annotator "TA"]
[PlyCount "104"]
[EventDate "2022.??.??"]
[TimeControl "60"]

{[%evp 9,104,12,12,12,12,0,0,-6,17,0,0,-16,-12,-39,-21,-49,-17,-14,-20,-63,-31,
-46,-26,-88,-98,-118,-127,-198,-193,-239,-253,-281,-290,-331,-256,-421,-137,
-126,-125,-293,-110,-110,-112,-110,-115,-127,-127,-128,-106,-104,-93,-134,-131,
-118,-108,-152,-82,-102,-93,-116,-124,-122,0,-115,-98,-102,-57,-93,-81,-251,
-249,-258,-249,-389,-402,-397,-396,-455,-462,-424,-273,-290,-281,-452,-333,
-554,-545,-1507,-1558,-5485,-5190,-29985,-29986,-29992,-29988,-29987,-29988]} 
1. d4 {[%emt 0:00:10]} Nf6 {[%emt 0:00:19]} 2. g3 {[%emt 0:00:07]} d5 {[%emt 0:
00:00]} 3. Bg2 {[%emt 0:00:32]} e6 {[%emt 0:03:33]} 4. Nf3 {[%emt 0:00:09]} b5
{[%emt 0:00:52]} 5. O-O {[%emt 0:02:19]} Bb7 {[%emt 0:06:37]} 6. a4 {[%emt 0:
00:00] A46:1 d4 Nf6 2 Nf3 e6: Torre, London and Colle Systems.} b4 {[%emt 0:00:
00]} 7. a5 {[%emt 0:01:30][%cal Yc2c4]} Be7 {[%emt 0:05:22]} 8. c3 {[%emt 0:00:
00] The position is equal.} bxc3 {[%emt 0:01:47]} 9. bxc3 {[%emt 0:01:08][%cal
Ya5a6]} O-O {[%emt 0:00:50] [#]} 10. c4 $146 {[%emt 0:12:11]} ({Predecessor:} 
10. Ba3 Bxa3 11. Nxa3 c5 12. Nc2 Nbd7 13. a6 Bc6 14. Ne5 Nxe5 15. dxe5 Nd7 16.
f4 {0-1 (37) Iliaguev,N (2344)-Martinez Alcantara,J (2591) Chess. com INT 2022}
) 10... dxc4 {[%emt 0:08:05]} 11. Qc2 {[%emt 0:00:47]} c5 {[%emt 0:04:43]} 12.
dxc5 {[%emt 0:03:06]} Bxc5 {[%emt 0:03:38]} 13. Bb2 {[%emt 0:00:59] Black must
now prevent Ng5.} Nbd7 {[%emt 0:18:31]} 14. Qxc4 {[%emt 0:07:06]} Rb8 {[%emt 0:
06:16] Threatens to win with ...Bxf3.} 15. Qc1 {[%emt 0:02:42]} Qe7 {[%emt 0:
01:10]} 16. Nc3 {[%emt 0:04:22]} (16. a6 $11 Bc6 17. Nbd2) 16... Rfc8 $1 $17 {
[%emt 0:01:17]} 17. Ra4 {[%emt 0:05:22]} Bc6 {[%emt 0:07:38]} 18. Rh4 {[%emt 0:
01:12]} (18. Ra2 $17 {is a better defense.}) 18... Nf8 $1 $19 {[%emt 0:02:27]}
19. Qa1 {[%emt 0:09:29]} (19. Kh1 $142) 19... Ng6 {[%emt 0:01:58]} 20. Rh3 {
[%emt 0:00:08]} e5 {[%emt 0:10:01]} 21. Na2 {[%emt 0:09:59]} Bd7 {[%emt 0:01:
18]} 22. Nxe5 $2 {[%emt 0:00:37] [#]} (22. Bxe5 Nxe5 23. Nxe5) 22... Bxh3 $2 {
[%emt 0:00:10]} (22... Rxb2 $1 $19 23. Nxd7 Bd4 24. Nxf6+ Qxf6) 23. Bxh3 $17 {
[%emt 0:00:13]} Rc7 {[%emt 0:00:16][%cal Yb8b2]} 24. Nc1 $2 {[%emt 0:02:26] [#]
} (24. Ng4 $17 {was called for.} Ne8 25. Bxg7 Nxg7 26. Nf6+ Kh8 27. Nd5) 24...
Nxe5 $2 {[%emt 0:06:30]} (24... Rxb2 $1 $19 {is more deadly.} 25. Nxg6 (25.
Qxb2 Nxe5) 25... Bxf2+ 26. Kxf2 (26. Rxf2 $2 Qb4 $19) 26... Qc5+ 27. Kg2 Rc2)
25. Bxe5 {[%emt 0:00:07] A strong pair of Bishops.} Bd6 {[%emt 0:00:02]} 26.
Bd4 {[%emt 0:00:29]} Rb5 {[%emt 0:00:00]} 27. e3 {[%emt 0:05:29]} Be5 {[%emt 0:
00:14] Black is more active.} 28. Ne2 {[%emt 0:00:33]} Bxd4 {[%emt 0:04:06]}
29. Nxd4 {[%emt 0:00:06]} Rbc5 {[%emt 0:00:20]} 30. Rd1 {[%emt 0:01:45]} g6 {
[%emt 0:00:37]} 31. a6 {[%emt 0:00:00]} Qe5 {[%emt 0:00:41]} 32. Rb1 {[%emt 0:
02:00]} Qe4 {[%emt 0:01:09]} (32... Ra5 $142 33. Rb8+ Kg7) 33. Rd1 {[%emt 0:03:
04][%cal Yd4e6] Hoping for Ne6!} Kg7 {[%emt 0:00:10]} 34. Nb3 {[%emt 0:01:10]}
Rb5 {[%emt 0:00:29]} 35. Nd4 {[%emt 0:00:30]} Rbc5 {[%emt 0:00:55][%cal Yb5c5,
Yc5c3,Yc3d3,Yd3a3,Ya3a6,Ya6b6]} 36. Nb3 $1 {[%emt 0:00:11]} Rc3 $36 {[%emt 0:
00:35] White is under strong pressure.} 37. Nd4 {[%emt 0:01:01]} Rd3 {[%emt 0:
00:21]} 38. Re1 {[%emt 0:00:30]} Qe7 {[%emt 0:00:28]} 39. Bf5 $2 {[%emt 0:00:
58]} Ra3 $19 {[%emt 0:00:32]} 40. Qb2 {[%emt 0:00:45]} Rxa6 {[%emt 0:00:17]}
41. g4 {[%emt 0:08:43]} (41. Bd3 {might work better.} Rb6 42. Qd2) 41... Rb6 {
[%emt 0:00:00]} 42. Qa1 {[%emt 0:01:08][%cal Yg4g5]} Kg8 {[%emt 0:00:56]} 43.
Rd1 {[%emt 0:05:55]} Rd6 {[%emt 0:10:28]} ({Wrong is} 43... gxf5 $2 44. Nxf5
Qf8 45. g5 $19) 44. Re1 {[%emt 0:05:08]} gxf5 {[%emt 0:02:46]} 45. Nxf5 {
[%emt 0:00:19]} Qd7 {[%emt 0:01:35]} 46. Rb1 $2 {[%emt 0:05:54]} (46. Nxd6 {
is the only way for White.} Qxd6 47. Rd1) 46... Rc8 {[%emt 0:05:32] And now ...
Rdc6 would win.} 47. Nh6+ $2 {[%emt 0:01:40]} (47. Nxd6 {keeps fighting.} Qxd6
48. h3) 47... Kf8 {[%emt 0:00:33]} 48. g5 {[%emt 0:00:54]} Ng8 {[%emt 0:00:55]}
49. Qh8 {[%emt 0:00:00]} Rd1+ {[%emt 0:01:26]} 50. Kg2 {[%emt 0:02:36]} Qd5+ {
[%emt 0:00:20] Black mates.} 51. e4 {[%emt 0:01:05]} Qxg5+ {[%emt 0:00:24]} 52.
Kf3 {[%emt 0:00:00]} Rxb1 {[%emt 0:00:27] Weighted Error Value: White=0.72/
Black=0.23 (precise)} 0-1

[Event "44th Chess Olympiad Women 2022"]
[Site "Chennai"]
[Date "2022.08.01"]
[Round "4.1"]
[White "Gara, Ticia"]
[Black "Harika, Dronavalli"]
[Result "1/2-1/2"]
[WhiteElo "2367"]
[BlackElo "2517"]
[Annotator "TA"]
[PlyCount "25"]
[EventDate "2022.??.??"]
[TimeControl "60"]

{[%evp 9,25,15,18,17,11,2,0,8,11,11,12,0,10,0,17,0,12,0]} 1. Nf3 {[%emt 0:00:
00]} d5 {[%emt 0:00:17]} 2. g3 {[%emt 0:00:10]} g6 {[%emt 0:00:24]} 3. Bg2 {
[%emt 0:00:43]} Bg7 {[%emt 0:00:19]} 4. d4 {[%emt 0:00:28]} c6 {[%emt 0:00:38]}
5. O-O {[%emt 0:03:13]} Nf6 {[%emt 0:00:25] The position is equal.} 6. Nbd2 {
[%emt 0:01:24] D02:1 d4 d5 2 Nf3 sidelines, including 2...Nf6 3 g3 and 2...
Nf6 3 Bf4.} a5 {[%emt 0:12:14]} 7. c3 {[%emt 0:02:12][%cal Ye2e4]} O-O {
[%emt 0:00:21]} 8. Re1 {[%emt 0:03:59]} Bf5 {[%emt 0:01:18] Against e4} 9. Nh4
{[%emt 0:01:54] [#]} Be6 $146 {[%emt 0:00:57][%cal Yc6c5]} ({Predecessor:} 9...
Bg4 10. h3 Be6 11. Nhf3 h6 12. e4 dxe4 13. Nxe4 Nxe4 14. Rxe4 Bd5 15. Re1 Nd7
16. Qe2 Re8 17. Bf4 b5 18. a4 Qb6 19. Ne5 Nxe5 20. Bxe5 Bxg2 21. Kxg2 {1-0 (86)
Vastrukhin,O (2401)-Yilmaz,M (2630) Chess.com INT 2021}) 10. Nhf3 {[%emt 0:00:
00]} Bf5 {[%emt 0:00:50]} 11. Nh4 {[%emt 0:01:08]} Be6 {[%emt 0:00:21][%cal
Yc6c5]} 12. Nhf3 {[%emt 0:01:12]} Bf5 {[%emt 0:01:07]} 13. Nh4 {[%emt 0:04:39]
An uneventful encounter. Weighted Error Value: White=0.07 (flawless) /Black=0.
00 (flawless)} 1/2-1/2

[Event "44th Chess Olympiad Women 2022"]
[Site "Chennai"]
[Date "2022.08.01"]
[Round "4.1"]
[White "Koneru, Humpy"]
[Black "Hoang, Thanh Trang"]
[Result "1/2-1/2"]
[WhiteElo "2586"]
[BlackElo "2376"]
[Annotator "TA"]
[PlyCount "96"]
[EventDate "2022.??.??"]
[TimeControl "60"]

{[%evp 17,96,13,47,11,17,0,20,2,23,23,17,26,18,15,43,34,37,9,73,68,75,68,67,0,
63,46,114,123,139,23,29,32,31,15,18,23,51,0,0,0,14,16,21,10,482,477,730,715,
725,715,703,22,24,0,0,0,0,-19,-18,-22,-18,-24,-22,-24,-25,-22,-22,-26,-17,-45,
-49,-55,-41,-43,-31,-39,0,-19,0,-47,0]} 1. d4 {[%emt 0:00:07]} e6 {[%emt 0:00:
00]} 2. c4 {[%emt 0:00:49]} f5 {[%emt 0:00:32]} 3. g3 {[%emt 0:01:34]} Nf6 {
[%emt 0:00:24]} 4. Bg2 {[%emt 0:00:10]} c6 {[%emt 0:01:20]} 5. Nf3 {[%emt 0:00:
00][%cal Yg1f3,Yf3e5,Ye5d3]} d5 {[%emt 0:00:44]} 6. O-O {[%emt 0:00:00]} Bd6 {
[%emt 0:00:26]} 7. b3 {[%emt 0:00:32]} Qe7 {[%emt 0:00:46]} 8. Ne5 {[%emt 0:00:
59]} O-O {[%emt 0:02:41]} 9. Qc2 {[%emt 0:01:29]} Nbd7 {[%emt 0:00:00] 9...
Nbd7 scores better than 9...Bd7.} 10. Nd3 {[%emt 0:03:10] A90: Dutch Defence:
Miscellaneous and Modern Stonewall (with ...Bd6).} b6 {[%emt 0:06:34]} 11. Bf4
{[%emt 0:00:43]} Bb7 {[%emt 0:01:44]} 12. Nd2 {[%emt 0:09:23] The position is
equal.} Rac8 {[%emt 0:09:45]} 13. Bxd6 {[%emt 0:07:23]} Qxd6 {[%emt 0:00:21]}
14. Rac1 {[%emt 0:05:13] [#]} c5 $146 {[%emt 0:05:45]} ({Predecessor:} 14...
Ne4 15. Qb2 Nxd2 16. Qxd2 dxc4 17. Rxc4 Ba6 18. Ra4 Nb8 19. Nb4 c5 20. Nxa6 b5
{1-0 (34) Loeffler,S (2365)-Muse,D (2295) Germany 1993}) 15. cxd5 {[%emt 0:03:
59]} exd5 {[%emt 0:10:01]} (15... Bxd5 {looks sharper.} 16. Nc4 Qe7 17. Qb2
cxd4 18. Qxd4 Nc5) 16. dxc5 {[%emt 0:04:43]} bxc5 {[%emt 0:00:00]} 17. Rfd1 {
[%emt 0:00:02]} g6 {[%emt 0:10:16]} (17... g5 $11) 18. Nf4 $1 $16 {[%emt 0:05:
33]} Qa6 {[%emt 0:04:31] Inhibits Nc4.} 19. e3 {[%emt 0:04:17]} Rfd8 {[%emt 0:
01:39]} 20. Nf3 {[%emt 0:11:51]} (20. h4 $14) 20... Nf8 {[%emt 0:00:00]} (20...
d4 $1 $11) 21. h4 {[%emt 0:08:13]} Ne4 {[%emt 0:04:09]} ({Better is} 21... Ne6
$14) 22. Ng5 $1 {[%emt 0:03:26]} Qf6 {[%emt 0:03:18]} 23. Kh2 {[%emt 0:03:35]}
(23. Qe2 $16) 23... h6 $1 $11 {[%emt 0:01:23]} 24. Nxe4 {[%emt 0:04:02]} fxe4 {
[%emt 0:00:18]} 25. Bh3 {[%emt 0:00:35]} Rc7 {[%emt 0:00:00]} 26. Qc3 $36 {
[%emt 0:00:34] White has good play.} Qf7 {[%emt 0:00:00]} 27. Bg4 {[%emt 0:09:
53]} (27. Kg2 $14) 27... g5 {[%emt 0:03:09]} 28. Nh5 {[%emt 0:03:53] Hoping
for Nf6+.} Rc6 {[%emt 0:05:46] Prevents Nf6+.} (28... Qxf2+ $2 29. Kh1 d4 30.
Qa5 $18) 29. hxg5 {[%emt 0:00:48]} Bc8 {[%emt 0:00:00]} (29... Qxf2+ $2 30. Kh1
Qf7 31. Rf1 $18) 30. f3 {[%emt 0:02:08]} exf3 $2 {[%emt 0:01:06] [#]} (30...
hxg5 $11 {and Black has nothing to worry.} 31. Qe5 Nh7) 31. Bxf3 $1 $18 {
[%emt 0:01:18][%cal Yd1d5]} hxg5 {[%emt 0:03:04] [#]} (31... d4 $142 32. exd4
hxg5 33. Bxc6 Qxh5+ 34. Kg1 Qg4) (31... Bb7 32. Nf6+) 32. Rxd5 $1 {[%emt 0:00:
19]} Rg6 {[%emt 0:00:00]} 33. Rxd8 {[%emt 0:02:41] White wants to mate with
Rf1.} Qxf3 {[%emt 0:00:00]} 34. Qc4+ $2 {[%emt 0:00:30]} ({White should play} 
34. Rxc8 $18 {[%cal Yh2g1] Kg1! is the strong threat.} Qxh5+ 35. Kg2 Qe2+ 36.
Kg1) 34... Be6 $11 {[%emt 0:00:20]} 35. Qxc5 {[%emt 0:01:27][%cal Yh2g1]
Strongly threatening Kg1!} Qxh5+ {[%emt 0:00:47]} 36. Kg1 {[%emt 0:00:07]
Dancing on a razor blade.} Qf3 {[%emt 0:01:39]} 37. Qe5 {[%emt 0:00:38] And
now Rf1 would win.} Rh6 $1 {[%emt 0:01:33][%csl Gf3][%cal Rh6h1]} (37... Rf6 $2
38. Qxg5+ Kh7 39. Rc7+ Bf7 {[#]} 40. Qxf6 $3 (40. Rxf8 $2 {gets mated.} Qf1+
41. Kh2 Rf2#) 40... Qxf6 41. Rxf8 Qa1+ 42. Kg2 Qxa2+ 43. Kf3 Qxb3 44. Rfxf7+ (
44. Rcxf7+ Kg6 $16) 44... Kg6 45. Rfd7 $18 (45. Rxa7 Qd5+ 46. Ke2 Qg2+ 47. Rf2
Qxg3 $16) (45. Rg7+ Kf6 $18)) 38. Qxg5+ {[%emt 0:00:31]} Kh7 {[%emt 0:00:43]
[%csl Gf3][%cal Rh6h1]} 39. Rc7+ {[%emt 0:00:30]} Bf7 {[%emt 0:00:22]} 40.
Rxf7+ $1 {[%emt 0:00:00]} Qxf7 {[%emt 0:00:10]} 41. Qd5 {[%emt 0:06:56]} ({
Of course not} 41. Qe5 Rf6 42. Rd1 Qg6 $17) 41... Qf6 {[%emt 0:09:02]} 42. Kg2
{[%emt 0:04:26]} Rg6 {[%emt 0:03:05]} 43. Qh5+ {[%emt 0:06:56]} Kg7 {[%emt 0:
00:50]} 44. Rd4 {[%emt 0:01:37]} Qc6+ {[%emt 0:08:41]} 45. Qf3 {[%emt 0:00:28]}
Qc2+ {[%emt 0:00:00]} 46. Qf2 {[%emt 0:00:15]} Qc6+ {[%emt 0:00:20]} 47. Qf3 $1
{[%emt 0:00:00]} Qc2+ {[%emt 0:00:10]} 48. Qf2 $1 {[%emt 0:00:02]} Qc6+ {
[%emt 0:04:53] Weighted Error Value: White=0.28 (precise) /Black=0.31} (48...
Qc5 $15) 1/2-1/2